bitfinex/quotes_ETHUSD_20241001
["timestamp","ask_amount","ask_price","bid_price","bid_amount"]
[1727825854827,3.26238,2452.2,2451.6,4.464086]
[1727825855154,3.26238,2452.2,2451.7,3.26303]
[1727825855320,6.52484,2452.2,2451.7,3.26303]
[1727825855525,3.26253,2452.1,2451.6,4.464086]
[1727825855721,3.26253,2452.1,2451.6,7.727186]
[1727825856253,3.26253,2452.1,2451.6,7.727136]
[1727825856547,3.26238,2452.2,2451.7,3.26296]
[1727825856721,3.26238,2452.2,2451.7,4.0356586]
[1727825858558,3.26221,2452.4,2451.8,3.26282]
[1727825858711,6.52442,2452.4,2451.9,3.26274]
[1727825859111,3.26221,2452.4,2451.9,3.99256586]
[1727825859315,4.50736958,2452.5,2452.0,4.05773]
[1727825859316,4.01798,2452.5,2452.0,4.05773]
[1727825860218,3.26188,2452.6,2452.0,4.05773]
[1727825860550,3.26201,2452.5,2452.0,4.05766]
[1727825860756,3.26201,2452.5,2452.0,4.53640859]
[1727825860930,7.01337958,2452.5,2452.0,4.53640859]
[1727825861278,3.75136958,2452.5,2452.1,3.26249]
[1727825861827,3.75136958,2452.5,2452.0,4.53640859]
[1727825861828,4.93436595,2452.7,2452.2,3.26236]
[1727825862029,4.93436595,2452.7,2452.3,3.26223]
[1727825862231,4.93436595,2452.7,2452.5,3.26197]
[1727825862232,0.42699637,2452.7,2452.5,3.26197]
[1727825862423,0.756,2453.0,2452.5,3.26189]
[1727825862614,3.26115,2453.2,2452.7,3.26162]
[1727825862948,10.27308958,2453.4,2452.9,0.7862]
[1727825863147,7.01221958,2453.4,2452.9,0.7862]
[1727825863327,7.01221958,2453.4,2452.9,4.04761]
[1727825863328,8.00733206,2453.4,2452.9,4.04761]
[1727825863746,8.00733206,2453.4,2452.9,4.04763]
[1727825863941,7.01221958,2453.4,2452.9,4.04763]
[1727825864157,3.75136958,2453.4,2453.0,3.26121]
[1727825864363,0.38381999,2453.3,2453.0,3.26121]
[1727825864584,0.38381999,2453.3,2452.9,4.04763]
[1727825864585,0.38381999,2453.3,2453.2,3.26104]
[1727825864748,3.26011,2453.9,2453.3,3.26079]
[1727825864936,0.37183889,2453.8,2453.4,0.08151075]
[1727825865131,4.08208,2454.0,2453.5,3.26057]
[1727825865333,0.37183889,2453.9,2453.5,3.26057]
[1727825865571,0.37183889,2453.9,2453.3,3.665519]
[1727825865572,0.37183889,2453.9,2453.7,4.04656]
[1727825865930,4.2046416,2454.3,2453.8,3.26024]
[1727825866275,4.2046416,2454.3,2453.9,3.2601]
[1727825866276,0.37183889,2454.2,2453.9,3.2601]
[1727825866768,0.37183889,2454.2,2453.7,0.7862]
[1727825866769,0.37183889,2454.1,2453.8,3.26022]
[1727825867175,3.3825716,2454.3,2453.8,3.26022]
[1727825867344,0.37183889,2454.0,2453.9,3.26011]
[1727825867549,0.1229916,2454.3,2453.9,6.52022]
[1727825867728,0.1229916,2454.3,2454.0,3.3414633]
[1727825867729,0.37183889,2454.2,2454.0,3.3414633]
[1727825867936,0.1229916,2454.3,2454.2,3.25971]
[1727825868144,0.49483049,2454.3,2454.2,3.25971]
[1727825868572,0.49483049,2454.3,2454.2,3.28470628]
[1727825869074,0.49483049,2454.3,2454.2,3.25971]
[1727825869570,0.1229916,2454.3,2454.2,7.04591]
[1727825869774,0.1229916,2454.3,2454.2,8.51763869]
[1727825871853,0.1229916,2454.3,2454.2,9.06763869]
[1727825880490,0.1229916,2454.3,2454.2,8.51763869]
[1727825880992,0.1229916,2454.3,2454.2,5.51763869]
[1727825882391,0.1229916,2454.3,2454.2,8.51763869]
[1727825886589,0.1229916,2454.3,2454.2,9.06763869]
[1727825890278,3.0,2455.8,2455.3,3.25825]
[1727825890279,0.822,2455.8,2455.3,3.25825]
[1727825890474,0.822,2455.8,2455.7,3.25772]
[1727825891781,0.822,2455.8,2455.6,3.25773]
[1727825892272,0.822,2455.8,2455.7,3.25772]
[1727825894496,1.19645335,2455.8,2455.7,3.25772]
[1727825894900,0.37445335,2455.8,2455.7,3.909265]
[1727825895199,0.7733,2456.1,2455.9,3.25736]
[1727825895699,0.7733,2456.1,2456.0,3.25732]
[1727825895875,0.7733,2456.7,2456.2,3.25695]
[1727825896198,2.66996464,2456.7,2456.4,3.25678]
[1727825896800,0.7733,2456.7,2456.5,3.25666]
[1727825897196,0.7733,2456.7,2456.5,3.25665]
[1727825897990,0.7733,2456.7,2456.4,3.25678]
[1727825898759,0.7733,2456.7,2456.4,3.25671]
[1727825899012,0.1229916,2456.8,2456.7,3.2564]
[1727825900256,0.1229916,2456.8,2456.7,3.983153]
[1727825900461,0.1229916,2456.8,2456.7,4.533153]
[1727825900984,0.1229916,2456.8,2456.7,11.28452258]
[1727825901522,0.1229916,2456.8,2456.7,7.533153]
[1727825901888,0.1229916,2456.8,2456.7,3.2564]
[1727825902084,0.8962916,2456.8,2456.2,3.25697]
[1727825902298,0.8962916,2456.8,2456.4,3.2567]
[1727825902299,0.36352503,2456.7,2456.4,3.2567]
[1727825902523,0.8962916,2456.8,2456.5,3.25658]
[1727825902730,0.36352503,2456.7,2456.5,3.25658]
[1727825903019,0.8962916,2456.8,2456.5,3.25657]
[1727825903221,0.36352503,2456.6,2456.2,3.257]
[1727825903428,0.36352503,2456.6,2456.5,3.25666]
[1727825903632,0.8962916,2456.8,2456.6,3.25653]
[1727825903855,0.8962916,2456.8,2456.4,6.51345]
[1727825904341,0.8962916,2456.8,2456.2,0.3257]
[1727825904342,4.1525616,2456.8,2456.2,3.58266]
[1727825904709,4.1525616,2456.8,2456.3,3.25686]
[1727825904943,4.1525616,2456.8,2456.4,3.25678]
[1727825905612,0.8962916,2456.8,2456.4,3.25678]
[1727825905924,4.1526316,2456.8,2456.3,3.25691]
[1727825906132,4.1526316,2456.8,2456.2,3.58266]
[1727825906334,3.3793316,2456.8,2456.2,3.58266]
[1727825906524,0.7733,2456.7,2456.4,3.25678]
[1727825907020,0.7733,2456.7,2456.5,3.25665]
[1727825907220,0.7733,2456.7,2456.4,3.25673]
[1727825907424,0.7733,2456.7,2456.4,3.25671]
[1727825908445,4.02977,2456.7,2456.2,3.25699]
[1727825908802,0.7697,2456.6,2456.2,3.25699]
[1727825909332,0.3638578,2456.5,2456.2,3.25699]
[1727825909545,0.3638578,2456.5,2456.3,3.25691]
[1727825909914,0.3638578,2456.5,2456.2,3.25699]
[1727825910118,0.3638578,2456.5,2456.2,6.51397]
[1727825910499,0.3638578,2456.5,2456.2,0.651397]
[1727825910734,0.1229916,2456.8,2456.7,3.2564]
[1727825910947,0.4868494,2456.8,2456.6,3.25651]
[1727825911147,0.1229916,2456.8,2456.4,3.25671]
[1727825911465,0.1229916,2456.8,2456.6,3.25641]
[1727825911750,0.36350769,2456.7,2456.6,3.25641]
[1727825911951,0.1229916,2456.8,2456.6,3.25641]
[1727825912105,0.36360107,2456.7,2456.6,3.25641]
[1727825912304,0.1229916,2456.8,2456.6,3.25641]
[1727825912559,0.36360107,2456.7,2456.4,3.2567]
[1727825912842,0.1229916,2456.8,2456.4,3.2567]
[1727825913155,0.1229916,2456.8,2456.5,3.25666]
[1727825913318,0.1229916,2456.8,2456.6,3.2565]
[1727825913319,0.36360107,2456.7,2456.6,3.2565]
[1727825913504,0.1229916,2456.8,2456.6,3.2565]
[1727825913704,0.1229916,2456.8,2456.7,3.2564]
[1727825914199,0.1229916,2456.8,2456.7,3.94670444]
[1727825914402,0.1229916,2456.8,2456.7,3.907691]
[1727825916045,0.1229916,2456.8,2456.7,3.95106566]
[1727825916249,0.1229916,2456.8,2456.7,0.651291]
[1727825916479,0.1229916,2456.8,2456.6,3.25651]
[1727825917238,0.1229916,2456.8,2456.7,3.2564]
[1727825919052,0.1229916,2456.8,2456.7,4.0623]
[1727825919256,0.1229916,2456.8,2456.7,7.0623]
[1727825919891,0.1229916,2456.8,2456.7,3.2564]
[1727825920184,0.48691362,2456.8,2456.7,3.988281]
[1727825920368,0.1229916,2456.8,2456.7,3.988281]
[1727825920863,0.48691362,2456.8,2456.7,3.988281]
[1727825921084,0.1229916,2456.8,2456.7,3.988281]
[1727825921584,0.4869603,2456.8,2456.7,3.988281]
[1727825927256,0.1229916,2456.8,2456.7,3.988281]
[1727825927462,0.42612674,2457.8,2457.7,3.25507]
[1727825927905,0.77800671,2457.8,2457.7,3.25507]
[1727825928198,4.07799,2458.3,2457.7,3.25507]
[1727825928407,0.8237,2458.0,2457.7,3.25507]
[1727825928923,0.8237,2458.0,2457.8,6.5098]
[1727825929072,0.35187997,2457.9,2457.8,3.25487]
[1727825929268,0.35187997,2457.9,2457.7,3.25506]
[1727825930917,0.35187997,2457.9,2457.8,3.25494]
[1727825933257,0.42598485,2458.1,2457.8,3.25494]
[1727825933258,0.42598485,2458.1,2457.9,0.8103]
[1727825933554,0.42598485,2458.1,2458.0,10.58889541]
[1727825933673,7.38,2459.2,2458.0,10.55603958]
[1727825933876,0.1229916,2459.3,2458.7,3.25375]
[1727825934401,0.1229916,2459.3,2458.8,3.25359]
[1727825934620,0.1229916,2459.3,2458.9,3.25348]
[1727825934802,0.1229916,2459.3,2459.1,3.25319]
[1727825935280,0.1229916,2459.3,2459.1,3.25313]
[1727825935675,0.1229916,2459.3,2459.2,3.25309]
[1727825936124,0.1229916,2459.3,2459.2,3.33440655]
[1727825936331,0.1229916,2459.3,2459.2,3.91184366]
[1727825938615,0.1229916,2459.3,2459.2,3.25309]
[1727825939208,0.1229916,2459.3,2459.1,3.25321]
[1727825939520,0.1229916,2459.3,2459.1,6.50642]
[1727825939730,0.1229916,2459.3,2459.2,3.25309]
[1727825939876,0.1229916,2459.3,2459.1,3.25321]
[1727825940074,0.8237,2459.2,2458.7,3.25365]
[1727825940276,1.61879912,2459.2,2458.8,3.2536]
[1727825940527,0.8237,2459.0,2458.5,3.25396]
[1727825940715,0.8237,2458.9,2458.4,6.50812]
[1727825940887,8.15975283,2458.9,2458.4,3.25405]
[1727825941138,0.8237,2458.8,2458.4,3.25405]
[1727825941620,0.33112325,2458.7,2458.4,3.25405]
[1727825942144,3.25246,2459.7,2458.4,3.25405]
[1727825942145,0.8237,2459.2,2458.9,3.25347]
[1727825942432,4.07682,2459.2,2458.7,3.25369]
[1727825942687,3.75136958,2459.1,2458.7,3.25369]
[1727825942846,4.07682,2459.2,2458.7,3.25369]
[1727825943137,4.07682,2459.2,2458.5,6.50786]
[1727825943366,5.17193812,2459.2,2458.5,3.25391]
[1727825943496,4.07696,2459.1,2458.6,3.25388]
[1727825943701,0.8237,2459.1,2458.7,0.08133388]
[1727825943946,0.8237,2459.1,2458.8,3.25351]
[1727825945803,0.8237,2459.1,2458.7,3.25372]
[1727825946350,0.8237,2459.1,2458.8,3.25361]
[1727825946768,0.8237,2459.1,2458.8,6.50715]
[1727825947054,0.8237,2459.1,2458.8,6.50708]
[1727825947252,0.8237,2459.1,2458.8,3.25354]
[1727825947909,0.8237,2459.1,2458.6,3.25385]
[1727825948256,0.8237,2459.1,2458.2,0.8103]
[1727825948257,3.25335,2459.0,2458.4,3.25402]
[1727825948462,3.25335,2459.0,2458.5,3.25394]
[1727825949250,1.24366416,2459.1,2458.6,3.25387]
[1727825949412,4.49688416,2459.1,2458.6,3.25387]
[1727825949944,1.24366416,2459.1,2458.6,3.2538]
[1727825950135,1.24366416,2459.1,2458.6,6.50759]
[1727825950334,1.24366416,2459.1,2458.6,3.25379]
[1727825950533,4.49689416,2459.1,2458.6,3.25379]
[1727825950904,1.24366416,2459.1,2458.7,3.25375]
[1727825951341,1.24366416,2459.1,2458.6,3.25379]
[1727825951916,1.24366416,2459.1,2458.7,3.25373]
[1727825952530,1.24366416,2459.1,2458.6,6.50759]
[1727825952735,1.24366416,2459.1,2458.7,3.25372]
[1727825953435,4.49696416,2459.1,2458.6,3.25379]
[1727825954402,0.33088638,2459.0,2458.6,3.25379]
[1727825955068,0.33088638,2459.0,2458.2,3.25431]
[1727825955069,0.7571,2458.8,2458.2,3.25431]
[1727825955225,4.01113,2458.5,2457.6,4.00976]
[1727825955553,0.7571,2458.5,2458.1,3.25451]
[1727825955712,3.58508376,2458.4,2457.9,3.2547]
[1727825955915,3.25482,2457.9,2457.4,3.2554]
[1727825956114,0.7571,2458.0,2457.2,0.7546]
[1727825956417,0.7571,2458.0,2457.4,3.25542]
[1727825956655,0.7571,2458.3,2458.0,3.25461]
[1727825956826,0.7571,2458.3,2457.9,3.25481]
[1727825956827,0.7571,2458.3,2458.1,3.25452]
[1727825957239,0.7571,2458.3,2457.9,3.25481]
[1727825957552,0.7571,2458.3,2458.1,3.25448]
[1727825959468,0.7571,2458.3,2458.0,3.25463]
[1727825959669,0.7571,2458.3,2457.9,3.25471]
[1727825959812,0.7571,2458.3,2458.1,3.25443]
[1727825960018,0.7571,2458.7,2458.3,3.25426]
[1727825960356,4.411952,2458.7,2458.2,3.2544]
[1727825960948,7.665772,2458.7,2458.2,3.2544]
[1727825961158,4.411952,2458.7,2458.2,3.2544]
[1727825961845,3.25408,2458.5,2458.0,3.25465]
[1727825962157,3.25389,2458.6,2458.1,3.25452]
[1727825962354,3.6950912,2458.6,2458.1,3.25452]
[1727825962714,0.7571,2458.7,2458.3,3.25428]
[1727825962930,0.7571,2458.7,2458.4,3.25412]
[1727825964260,0.7571,2458.9,2458.5,3.25392]
[1727825964837,0.7571,2458.9,2458.6,3.25379]
[1727825965373,0.7571,2458.6,2458.0,3.25457]
[1727825965516,0.7571,2458.6,2457.8,3.25487]
[1727825965517,3.25437,2458.3,2457.8,3.25487]
[1727825965712,4.01105,2458.6,2458.1,3.25445]
[1727825966478,3.25405,2458.5,2457.9,3.25471]
[1727825966964,0.7571,2458.1,2457.4,7.49]
[1727825967113,0.7571,2458.1,2457.6,3.2551]
[1727825967654,0.7571,2458.1,2457.8,3.25488]
[1727825968557,0.7571,2458.1,2457.3,7.73530149]
[1727825968854,0.7571,2458.1,2457.7,3.255]
[1727825969161,0.7571,2458.1,2457.6,3.25519]
[1727825969162,0.7571,2458.1,2457.8,3.25494]
[1727825969670,0.33009859,2458.0,2457.8,3.25494]
[1727825969960,0.33009859,2458.0,2457.8,6.50979]
[1727825970285,0.33009859,2458.0,2457.8,3.25485]
[1727825970457,0.33009859,2458.0,2457.6,6.51027]
[1727825970764,0.33009859,2458.0,2457.7,3.255]
[1727825971228,0.33009859,2458.0,2457.8,3.25487]
[1727825971435,0.8142,2458.4,2458.2,3.25435]
[1727825971624,0.32993863,2458.3,2458.2,3.25435]
[1727825971960,0.8142,2458.6,2458.2,3.25435]
[1727825972351,0.8142,2458.6,2458.0,3.25458]
[1727825972352,0.32993863,2458.5,2458.0,3.25458]
[1727825972682,0.32993863,2458.5,2457.6,3.2551]
[1727825972683,3.25449,2458.2,2457.6,3.2551]
[1727825972932,3.25468,2458.0,2457.6,3.2551]
[1727825973379,0.32999789,2457.9,2457.7,3.25506]
[1727825973575,0.8142,2458.1,2457.7,3.25506]
[1727825973919,0.32999789,2458.0,2457.7,3.25506]
[1727825974508,0.32999789,2458.0,2457.8,3.25482]
[1727825975885,0.32999789,2458.0,2457.7,3.91289839]
[1727825976212,0.32999789,2458.0,2457.7,3.25499]
[1727825976985,0.32999789,2458.0,2457.7,6.51]
[1727825977328,0.32999789,2458.0,2457.7,6.50999]
[1727825977532,0.32999789,2458.0,2457.2,3.8136]
[1727825977754,3.25495,2457.8,2457.3,6.51112]
[1727825978030,0.32991493,2457.7,2457.3,6.51106]
[1727825978235,4.53937149,2457.9,2457.4,3.25543]
[1727825978381,0.32990308,2457.8,2457.4,3.25543]
[1727825979197,3.58486308,2457.8,2457.3,3.25553]
[1727825979525,3.58486308,2457.8,2457.3,3.25551]
[1727825980986,0.32990308,2457.8,2457.5,3.25532]
[1727825981599,0.32990308,2457.8,2457.4,3.25547]
[1727825982332,0.32990308,2457.8,2457.6,3.2552]
[1727825982493,0.32990308,2457.8,2457.7,3.25507]
[1727825983091,0.8142,2458.1,2457.7,3.25507]
[1727825983603,0.32937559,2458.0,2457.5,0.8136]
[1727825983938,0.32937559,2458.0,2457.9,3.25481]
[1727825984175,0.42544329,2458.2,2457.9,3.25481]
[1727825984301,0.42544329,2458.2,2457.8,3.25493]
[1727825984504,0.32937559,2458.1,2457.8,3.25493]
[1727825984705,0.32937559,2458.1,2457.9,3.2548]
[1727825985106,0.81213648,2458.1,2457.6,3.25509]
[1727825985329,4.07323,2458.0,2457.6,3.25509]
[1727825985560,0.32937559,2458.1,2458.0,3.25467]
[1727825985706,0.42544329,2458.2,2458.1,3.25454]
[1727825987030,0.84676208,2458.9,2457.9,3.25474]
[1727825987031,3.72517149,2458.5,2457.9,3.25479]
[1727825987313,3.25429,2458.3,2457.8,6.50975]
[1727825987922,3.25429,2458.3,2457.8,3.25487]
[1727825988124,0.8185,2458.4,2458.1,3.25446]
[1727825988336,0.8185,2458.4,2457.9,3.25472]
[1727825988565,0.8185,2458.4,2458.1,3.25447]
[1727825989426,0.8185,2458.4,2457.9,4.0533]
[1727825989752,0.8185,2458.4,2458.1,3.25452]
[1727825990072,0.8185,2458.4,2458.2,3.25435]
[1727825990255,4.10061208,2458.7,2458.3,3.25428]
[1727825990458,0.8185,2458.5,2458.0,3.65992]
[1727825990606,0.8185,2458.5,2458.1,3.2545]
[1727825990808,4.07252,2458.5,2458.1,3.2545]
[1727825991142,4.07252,2458.5,2457.9,3.2548]
[1727825991143,3.25428,2458.3,2457.9,3.2548]
[1727825991316,0.8185,2458.2,2457.9,3.2548]
[1727825991722,0.8185,2458.2,2457.9,6.50954]
[1727825991975,0.8185,2458.2,2458.1,3.25454]
[1727825992265,5.38307635,2458.8,2458.5,3.25394]
[1727825992266,0.8185,2458.7,2458.5,3.25394]
[1727825992562,1.66526208,2459.0,2458.7,3.25362]
[1727825993172,0.8185,2459.0,2458.7,3.25362]
[1727825993719,0.8185,2459.0,2458.4,3.25404]
[1727825993720,4.07192,2459.0,2458.4,3.25404]
[1727825993915,0.84676208,2458.9,2458.5,3.25401]
[1727825994115,4.91868208,2459.0,2458.5,3.25401]
[1727825994319,4.91868208,2459.0,2458.5,6.50793]
[1727825994620,4.91868208,2459.0,2458.5,3.25392]
[1727825994963,1.66526208,2459.0,2458.3,3.25419]
[1727825995167,3.25364,2458.8,2458.3,3.25419]
[1727825995394,3.25364,2458.8,2458.3,6.50838]
[1727825995523,3.25364,2458.8,2458.3,3.25419]
[1727825995832,0.8185,2458.7,2458.3,3.25417]
[1727825996033,0.8185,2458.7,2458.2,3.25431]
[1727825996357,4.07234,2458.7,2458.2,3.25431]
[1727825996561,4.07234,2458.7,2458.1,3.25445]
[1727825996562,3.25389,2458.6,2458.1,3.25445]
[1727825997420,3.25389,2458.6,2458.1,6.5089]
[1727825997765,3.25389,2458.6,2457.9,8.939554]
[1727825997766,4.07254,2458.5,2458.0,3.25459]
[1727825997966,0.8185,2458.5,2458.1,3.25446]
[1727825998476,0.8185,2458.5,2458.1,3.25444]
[1727825999061,4.0726,2458.5,2458.0,3.25459]
[1727825999276,0.3304303,2458.4,2458.0,3.25459]
[1727825999778,3.5846203,2458.4,2458.0,3.25459]
[1727826000128,0.3304303,2458.4,2458.0,3.25459]
[1727826000652,0.3304303,2458.4,2457.8,3.25485]
[1727826000653,3.5846403,2458.4,2457.9,3.2548]
[1727826000981,4.10125208,2458.2,2457.7,3.25507]
[1727826001190,3.25449,2458.2,2457.7,3.25507]
[1727826001393,5.39043357,2458.3,2457.8,3.25483]
[1727826001539,0.3304303,2458.1,2457.7,3.25497]
[1727826001741,3.25443,2458.2,2457.7,3.25497]
[1727826002076,0.33008082,2458.1,2457.7,6.50998]
[1727826002443,0.33008082,2458.1,2457.7,3.25497]
[1727826002648,0.33008082,2458.1,2457.2,0.85161757]
[1727826002649,0.8185,2458.0,2457.2,0.7986]
[1727826002910,1.1768429,2458.1,2457.2,0.7986]
[1727826003029,11.92367149,2458.3,2457.7,3.25499]
[1727826003233,11.92367149,2458.3,2457.5,3.25525]
[1727826003234,0.8185,2457.8,2457.5,3.25525]
[1727826003532,0.32996232,2457.7,2457.3,6.51102]
[1727826003727,0.32996232,2457.7,2457.4,3.25535]
[1727826003928,0.32996232,2457.7,2457.5,3.25528]
[1727826004201,1.66526208,2458.1,2457.7,3.25496]
[1727826004744,0.8185,2458.1,2457.8,3.25485]
[1727826004944,0.8185,2458.1,2457.8,6.50972]
[1727826005141,0.8185,2457.5,2456.9,3.25607]
[1727826005395,3.8185,2457.5,2456.9,3.25606]
[1727826005588,4.67039402,2457.5,2457.1,3.25579]
[1727826005747,3.8185,2457.5,2457.1,3.25579]
[1727826006291,7.07394,2457.5,2456.7,3.988231]
[1727826006500,7.92583402,2457.5,2456.8,3.6550131]
[1727826006708,0.85189402,2457.4,2456.9,3.25605]
[1727826006927,5.00301252,2457.6,2457.0,0.87998915]
[1727826006928,0.85189402,2457.6,2457.0,0.87998915]
[1727826007064,0.85189402,2458.1,2457.8,3.25494]
[1727826007264,0.85189402,2458.4,2458.2,3.25441]
[1727826007576,0.85189402,2458.6,2458.2,3.905229]
[1727826007779,2.09634103,2458.7,2458.3,3.25428]
[1727826007780,1.67039402,2458.7,2458.3,3.25428]
[1727826007998,4.92414402,2458.7,2458.2,3.905229]
[1727826008176,3.2539,2458.6,2458.2,0.650899]
[1727826008380,4.92414402,2458.7,2458.2,3.905279]
[1727826008717,4.92414402,2458.7,2458.3,0.4703879]
[1727826008718,0.85189402,2458.6,2458.3,0.4703879]
[1727826008863,4.92414402,2458.7,2458.3,0.4703879]
[1727826009061,1.67039402,2458.7,2458.3,3.7245879]
[1727826009480,4.92422402,2458.7,2458.3,0.4703879]
[1727826009709,4.92422402,2458.7,2458.2,3.905279]
[1727826009866,8.17805402,2458.7,2458.2,3.905279]
[1727826010203,4.92422402,2458.7,2458.2,3.905279]
[1727826011035,4.92421402,2458.7,2458.2,3.905279]
[1727826011339,8.17804402,2458.7,2458.2,3.905229]
[1727826011703,2.12973505,2459.0,2458.8,3.25361]
[1727826011909,2.25256656,2459.3,2459.1,0.7986]
[1727826011910,0.1229916,2459.3,2459.1,0.7986]
[1727826012163,0.1229916,2459.3,2459.2,3.25309]
[1727826012444,0.1229916,2459.3,2459.2,6.8708342]
[1727826012815,0.1229916,2459.3,2459.2,6.80309]
[1727826013356,0.1229916,2459.3,2459.2,7.888581]
[1727826013971,0.1229916,2459.3,2459.2,7.338581]
[1727826014161,0.1229916,2459.3,2459.2,7.888581]
[1727826016717,0.1229916,2459.3,2459.2,7.338581]
[1727826017123,0.45394257,2459.3,2459.2,7.338581]
[1727826018214,0.1229916,2459.3,2459.2,7.338581]
[1727826018923,0.45502042,2459.3,2459.2,4.338581]
[1727826019125,0.1229916,2459.3,2459.1,6.50637]
[1727826019454,0.45502042,2459.3,2459.0,3.25334]
[1727826019672,0.45502042,2459.3,2458.9,3.25339]
[1727826019673,1.08302882,2459.2,2458.8,3.25359]
[1727826019846,1.08302882,2459.2,2458.7,3.25366]
[1727826020043,1.08302882,2459.2,2458.8,3.25354]
[1727826020208,1.08302882,2459.2,2458.8,3.25361]
[1727826021467,5.10731086,2459.2,2458.5,3.25395]
[1727826021705,0.751,2458.9,2458.3,3.25418]
[1727826021834,0.751,2458.9,2458.5,3.25393]
[1727826022012,0.751,2458.9,2458.5,6.50786]
[1727826022216,0.3317151,2458.8,2458.6,3.25388]
[1727826022414,0.3317151,2458.8,2458.7,3.25375]
[1727826022615,0.751,2459.1,2458.8,3.25352]
[1727826023067,0.33163813,2459.0,2458.8,3.25352]
[1727826025135,0.33163813,2459.0,2458.7,3.25375]
[1727826025655,0.33163813,2459.0,2458.7,6.50743]
[1727826025951,0.33163813,2459.0,2458.9,3.25348]
[1727826026249,0.33163813,2459.0,2458.9,3.25339]
[1727826026610,0.1229916,2459.3,2459.0,3.25328]
[1727826026921,0.1229916,2459.3,2458.9,3.25337]
[1727826027116,0.1229916,2459.3,2459.0,3.25328]
[1727826027781,0.1229916,2459.3,2458.7,0.7158211]
[1727826027939,4.58550189,2459.2,2458.6,3.2538]
[1727826028130,3.3760116,2459.3,2458.8,3.25354]
[1727826028453,0.1229916,2459.3,2458.9,3.25348]
[1727826029253,0.33103443,2459.2,2458.9,3.25348]
[1727826029754,0.33103443,2459.1,2458.9,3.25348]
[1727826029954,0.33103443,2459.1,2458.8,3.25354]
[1727826030156,0.1229916,2459.3,2458.8,3.25354]
[1727826030351,0.33103443,2459.0,2458.8,3.25354]
[1727826030556,3.3759516,2459.3,2458.8,6.50709]
[1727826030781,0.33103443,2458.9,2458.8,6.50709]
[1727826030948,3.3759516,2459.3,2458.8,3.25354]
[1727826031148,0.33103443,2458.9,2458.8,6.50707]
[1727826031357,3.3759516,2459.3,2458.8,6.50707]
[1727826031552,0.33103443,2458.9,2458.8,3.25353]
[1727826031746,3.3759516,2459.3,2458.8,3.25353]
[1727826032066,0.37956118,2458.9,2458.8,3.25353]
[1727826032594,3.3759516,2459.3,2458.8,6.50707]
[1727826032742,0.37956118,2458.9,2458.8,3.25353]
[1727826032948,3.3759516,2459.3,2458.8,3.25353]
[1727826033254,3.25311,2459.2,2458.6,3.25378]
[1727826033473,3.25311,2459.2,2458.6,6.50757]
[1727826033693,0.37956118,2459.1,2458.9,3.2534]
[1727826033986,0.1229916,2459.3,2459.2,3.25309]
[1727826034569,0.1229916,2459.3,2459.2,3.80309]
[1727826034793,0.1229916,2459.3,2459.2,4.33104972]
[1727826035450,0.1229916,2459.3,2459.2,1.07795972]
[1727826035761,0.1229916,2459.3,2459.1,6.50629]
[1727826035944,0.1229916,2459.3,2458.8,3.2535]
[1727826035945,0.8271,2459.2,2458.8,3.2535]
[1727826036147,0.8271,2459.2,2459.0,3.25335]
[1727826036981,0.8271,2459.2,2459.1,3.25322]
[1727826037344,0.8271,2459.2,2459.0,3.25335]
[1727826037345,0.8271,2459.2,2459.0,6.50664]
[1727826037547,0.1229916,2459.3,2459.1,3.25322]
[1727826038186,0.1229916,2459.3,2459.2,3.25309]
[1727826038385,0.1229916,2459.3,2459.0,3.903914]
[1727826038585,0.1229916,2459.3,2459.1,3.25314]
[1727826038885,0.1229916,2459.3,2459.2,3.25309]
[1727826039050,0.1229916,2459.3,2459.2,3.9687794]
[1727826039890,0.1229916,2459.3,2459.0,0.650664]
[1727826040046,0.8271,2459.2,2458.9,3.25341]
[1727826040989,0.8271,2459.2,2458.9,3.2534]
[1727826041171,0.8271,2459.2,2459.0,3.25334]
[1727826041681,0.8271,2459.2,2458.9,3.2534]
[1727826042113,0.8271,2459.2,2459.0,3.25335]
[1727826043193,0.1229916,2459.3,2459.0,3.904025]
[1727826043758,0.1229916,2459.3,2458.9,3.2534]
[1727826044207,0.1229916,2459.3,2459.1,3.25321]
[1727826044408,0.1229916,2459.3,2459.1,6.50635]
[1727826044409,0.37974472,2459.2,2459.1,6.50635]
[1727826044767,0.1229916,2459.3,2459.1,6.50635]
[1727826044966,0.37974472,2459.2,2459.1,6.50635]
[1727826045195,0.37974472,2459.2,2459.1,7.156985]
[1727826045518,0.1229916,2459.3,2459.2,3.25309]
[1727826047296,0.1229916,2459.3,2459.1,3.903775]
[1727826047497,0.1229916,2459.3,2458.9,3.25339]
[1727826047871,0.1229916,2459.3,2459.2,3.25309]
[1727826049110,0.1229916,2459.3,2459.2,6.97638719]
[1727826050481,0.1229916,2459.3,2459.2,3.25309]
[1727826051103,0.1229916,2459.3,2458.9,3.25339]
[1727826051303,0.37996968,2459.2,2458.9,3.25339]
[1727826051519,0.86549576,2459.3,2458.9,3.25339]
[1727826051733,0.37996968,2459.2,2458.9,3.25339]
[1727826052143,0.1229916,2459.3,2459.0,3.25335]
[1727826052300,0.37996968,2459.1,2459.0,3.25335]
[1727826052632,0.1229916,2459.3,2458.9,6.50681]
[1727826052864,0.1229916,2459.3,2459.0,3.25333]
[1727826052865,0.37996968,2459.1,2459.0,3.25333]
[1727826053004,0.1229916,2459.3,2459.2,3.25309]
[1727826053436,0.50272447,2459.3,2459.2,3.25309]
[1727826054411,1.29922447,2459.3,2458.9,0.650681]
[1727826054600,0.50272447,2459.3,2459.2,3.25309]
[1727826055237,0.50272447,2459.3,2458.9,6.50678]
[1727826055611,0.50272447,2459.3,2458.9,6.50679]
[1727826055814,0.50272447,2459.3,2459.0,3.25331]
[1727826056132,0.50272447,2459.3,2458.9,3.25338]
[1727826056727,1.35461849,2459.3,2458.9,3.25338]
[1727826056935,1.35461849,2459.3,2458.9,6.50679]
[1727826057304,1.35461849,2459.3,2458.9,6.5068]
[1727826057503,1.35461849,2459.3,2458.5,8.2869]